bitfinex-derivatives/quotes_ETHF0:USTF0_20241013
["timestamp","ask_amount","ask_price","bid_price","bid_amount"]
[1728836764769,0.40824,2449.9,2449.7,0.40826]
[1728836764965,0.8032,2450.0,2449.9,0.40824]
[1728836765171,0.40824,2449.9,2449.8,2.87]
[1728836765362,0.40824,2449.9,2449.5,0.4115]
[1728836765363,4.011,2450.0,2449.5,0.4115]
[1728836765669,0.40829,2449.6,2449.5,0.81979]
[1728836765857,0.40828,2449.7,2449.5,0.81979]
[1728836766062,0.40825,2449.8,2449.5,0.81979]
[1728836766365,0.40829,2449.6,2449.5,0.81979]
[1728836766569,0.40824,2449.9,2449.3,4.7404]
[1728836766570,0.40831,2449.5,2449.3,4.7404]
[1728836766864,0.299,2449.5,2449.4,0.40832]
[1728836767262,0.199,2449.5,2449.4,0.40832]
[1728836768261,3.6136,2450.0,2449.6,0.40827]
[1728836768262,0.40826,2449.8,2449.6,0.40827]
[1728836768459,0.40826,2449.8,2449.6,3.27827]
[1728836768863,0.40826,2449.8,2449.6,2.87]
[1728836769065,0.4083,2449.6,2449.4,3.27831]
[1728836769564,1.0207,2449.7,2449.3,4.01073]
[1728836769866,0.4083,2449.5,2449.3,4.01073]
[1728836770063,0.3962,2449.6,2449.3,4.01073]
[1728836770266,0.40832,2449.4,2449.3,4.01073]
[1728836770561,0.40832,2449.4,2449.3,3.6024]
[1728836770769,0.40832,2449.4,2449.3,3.2078]
[1728836772360,7.2902,2449.4,2448.9,1.5444]
[1728836772566,7.2902,2449.4,2448.6,0.40844]
[1728836772567,0.40842,2448.8,2448.6,0.40844]
[1728836772770,0.40842,2448.8,2448.6,0.7889]
[1728836773068,1.02095,2449.1,2448.6,0.7889]
[1728836773069,3.2078,2449.1,2448.6,0.7889]
[1728836773261,0.8149,2449.0,2448.8,0.40841]
[1728836773569,6.1888,2449.4,2448.9,0.4084]
[1728836773570,0.40837,2449.1,2448.9,0.4084]
[1728836773770,0.40837,2449.1,2449.0,0.40839]
[1728836777167,0.40836,2449.2,2449.1,0.40836]
[1728836777374,0.40837,2449.1,2449.0,0.40837]
[1728836781264,0.40839,2449.1,2449.0,0.40838]
[1728836781867,4.63516,2449.3,2448.9,0.40839]
[1728836781868,0.40839,2449.0,2448.9,0.40839]
[1728836782264,0.40839,2449.0,2448.9,4.49159]
[1728836783166,0.40839,2449.0,2448.9,0.40839]
[1728836784369,1.02091,2449.2,2448.7,2.87]
[1728836784679,1.02091,2449.2,2448.7,3.27843]
[1728836784680,0.40842,2448.8,2448.7,3.27843]
[1728836784870,0.40842,2448.9,2448.8,0.40841]
[1728836785078,0.3854,2449.1,2448.7,2.87]
[1728836785374,0.4084,2449.0,2448.9,0.40839]
[1728836786274,0.3854,2449.1,2448.7,2.87]
[1728836786569,3.6143,2449.3,2448.9,2.87]
[1728836786779,0.40837,2449.1,2449.0,0.83267]
[1728836787077,0.40836,2449.2,2449.1,0.40836]
[1728836787375,0.40836,2449.2,2449.1,0.79286]
[1728836787573,0.40836,2449.2,2449.1,1.18766]
[1728836789165,3.2078,2449.3,2449.2,0.40835]
[1728836789571,0.40831,2449.5,2449.4,0.40831]
[1728836789769,5.43519,2449.7,2449.1,6.8571]
[1728836789974,1.02072,2449.6,2449.1,6.8571]
[1728836790177,0.4083,2449.5,2449.4,0.40832]
[1728836790374,0.40832,2449.4,2449.3,0.40833]
[1728836790571,0.40832,2449.5,2449.2,0.40835]
[1728836790777,0.40832,2449.5,2449.1,6.8571]
[1728836790778,0.40832,2449.5,2449.4,0.40832]
[1728836790970,0.40829,2449.6,2449.5,0.40829]
[1728836791275,4.4145,2449.7,2449.1,7.878]
[1728836791572,0.40831,2449.5,2449.4,0.4083]
[1728836792172,5.4352,2449.7,2449.1,3.6493]
[1728836792478,0.40835,2449.3,2449.2,1.54635]
[1728836792980,0.40835,2449.3,2449.2,5.62955]
[1728836794366,0.40835,2449.3,2449.2,5.2212]
[1728836795379,0.40835,2449.3,2449.2,5.62955]
[1728836796074,0.40833,2449.4,2449.2,5.62955]
[1728836796274,0.40834,2449.3,2449.2,1.54635]
[1728836796576,5.4352,2449.7,2449.2,1.138]
[1728836796774,1.02072,2449.6,2449.2,1.138]
[1728836796974,1.02072,2449.6,2449.2,1.54634]
[1728836797172,0.40834,2449.4,2449.2,1.54634]
[1728836797882,0.40834,2449.3,2449.2,1.138]
[1728836798580,0.40834,2449.3,2449.1,8.40346]
[1728836799080,0.40834,2449.3,2449.2,0.40835]
[1728836801774,1.02076,2449.5,2449.2,0.40835]
[1728836801975,1.59336714,2449.6,2449.3,0.40833]
[1728836801976,0.40832,2449.4,2449.3,0.40833]
[1728836802680,1.59336714,2449.6,2449.1,4.7873]
[1728836802987,2.20590428,2449.6,2449.5,0.4083]
[1728836803281,1.59336714,2449.6,2449.2,3.2078]
[1728836803490,1.59336714,2449.5,2449.4,0.40831]
[1728836803678,2.00166714,2449.5,2449.4,0.40831]
[1728836803873,0.4083,2449.5,2449.4,0.40831]
[1728836804385,2.00166714,2449.5,2449.4,0.40831]
[1728836804976,1.59336714,2449.5,2449.4,0.40831]
[1728836805378,1.79761904,2449.5,2449.2,3.2078]
[1728836805587,0.40834,2449.3,2449.2,0.40835]
[1728836806183,1.22624,2449.3,2449.2,0.40835]
[1728836807576,2.41126714,2449.3,2449.0,0.40838]
[1728836807782,2.00173714,2449.2,2449.0,0.40838]
[1728836807977,0.40837,2449.1,2449.0,0.40838]
[1728836808474,2.00173714,2449.1,2448.9,0.82549]
[1728836808979,0.40839,2449.0,2448.9,0.4171]
[1728836809375,0.4084,2448.9,2448.7,3.27842]
[1728836809574,1.6274,2448.9,2448.8,0.40842]
[1728836810585,1.219,2448.9,2448.6,4.0392]
[1728836810785,0.40844,2448.7,2448.6,3.2078]
[1728836810991,1.59336714,2448.7,2448.6,3.2078]
[1728836811182,1.49336714,2448.7,2448.6,3.61625]
[1728836812178,0.61275206,2448.7,2448.6,3.2078]
[1728836812381,2.54321856,2448.7,2448.6,3.2078]
[1728836812592,2.74753062,2448.7,2448.6,3.2078]
[1728836813589,2.74754506,2448.7,2448.6,3.2078]
[1728836815888,2.74754506,2448.7,2448.6,3.61625]
[1728836816483,2.33910506,2448.7,2448.6,6.48625]
[1728836816790,0.2043265,2448.7,2448.6,6.48625]
[1728836816979,2.13477856,2448.8,2448.7,0.40844]
[1728836817181,0.40844,2448.7,2448.6,3.2078]
[1728836817382,0.61275282,2448.7,2448.6,3.61625]
[1728836818079,0.61275282,2448.7,2448.6,3.2078]
[1728836823494,0.20431282,2448.7,2448.5,0.40846]
[1728836823795,2.13477856,2448.8,2448.5,0.40846]
[1728836823796,0.40845,2448.6,2448.5,0.40846]
[1728836824293,2.13477856,2448.8,2448.4,3.2078]
[1728836824497,0.40846,2448.6,2448.5,0.40847]
[1728836826586,0.40845,2448.7,2448.5,0.40847]
[1728836826796,0.40845,2448.6,2448.5,0.40847]
[1728836827294,2.13477856,2448.8,2448.4,3.2078]
[1728836827491,0.40845,2448.7,2448.6,0.40845]
[1728836828098,0.40844,2448.7,2448.5,0.40846]
[1728836828793,0.40844,2448.7,2448.6,0.40845]
[1728836829191,0.40846,2448.6,2448.5,0.40846]
[1728836831185,3.35377856,2448.9,2448.4,3.2078]
[1728836831391,1.02111,2448.7,2448.4,3.2078]
[1728836831592,0.40846,2448.6,2448.5,0.40846]
[1728836833402,0.40847,2448.5,2448.4,3.61628]
[1728836833599,0.40849,2448.4,2448.3,0.40849]
[1728836833803,3.89115,2448.6,2448.2,0.7764]
[1728836834103,3.86574,2448.4,2448.0,0.40854]
[1728836834305,0.40854,2448.1,2448.0,0.79484]
[1728836834506,0.40854,2448.1,2448.0,0.3863]
[1728836835102,0.40855,2448.0,2447.9,3.2078]
[1728836835403,1.23305,2448.0,2447.9,3.2078]
[1728836837305,4.80115025,2448.4,2447.9,7.2926]
[1728836837496,0.40853,2448.2,2448.0,0.82295]
[1728836837894,0.40853,2448.2,2448.1,0.4157]
[1728836838201,0.40852,2448.3,2448.1,0.82424]
[1728836838409,0.40852,2448.2,2448.1,0.82424]
[1728836844401,1.47568579,2448.2,2448.1,0.82424]
[1728836846395,1.06716579,2448.2,2448.1,0.82424]
[1728836846703,1.47568579,2448.2,2448.1,0.82424]
[1728836851407,0.40852,2448.2,2448.1,0.82424]
[1728836852612,1.06859969,2448.2,2448.1,4.5005]
[1728836852814,1.06859969,2448.2,2448.1,4.90904]
[1728836855010,2.13709206,2448.2,2448.1,4.90904]
[1728836856910,1.06859969,2448.2,2448.1,4.90904]
[1728836857806,1.06859969,2448.2,2448.1,10.90904]
[1728836858007,1.06859969,2448.2,2448.1,15.5071615]
[1728836859114,1.06859969,2448.2,2448.1,10.01798873]
[1728836859319,1.06859969,2448.2,2448.1,16.01798873]
[1728836859613,1.06859969,2448.2,2448.1,10.5571615]
[1728836859806,1.06859969,2448.2,2448.1,11.8771615]
[1728836860002,2.13709206,2448.2,2448.1,3.19424]
[1728836860613,2.13709206,2448.2,2448.1,7.27904]
[1728836861419,1.06849237,2448.2,2448.1,7.27904]
[1728836864112,1.06849237,2448.2,2448.1,3.19424]
[1728836864308,1.06849237,2448.2,2448.1,7.27904]
[1728836864506,1.06849237,2448.2,2448.1,3.19424]
[1728836866323,1.06849237,2448.2,2448.1,2.14424]
[1728836866517,1.06849237,2448.2,2448.1,3.19424]
[1728836868315,1.21091,2448.3,2448.2,0.40852]
[1728836868518,1.41525862,2448.3,2448.2,0.40852]
[1728836869118,1.41525862,2448.3,2448.2,1.72852]
[1728836869119,1.00674862,2448.3,2448.2,1.72852]
[1728836870124,1.0701397,2448.3,2448.2,5.81332]
[1728836870424,1.0701397,2448.4,2448.2,12.08033025]
[1728836870628,1.0701397,2448.4,2448.3,3.20623025]
[1728836870925,1.07011898,2448.5,2448.4,0.40849]
[1728836871115,1.07011898,2448.5,2448.4,1.72849]
[1728836871313,1.6051802,2448.5,2448.4,1.32]
[1728836871511,1.6051802,2448.5,2448.4,1.72849]
[1728836872322,4.8129802,2448.6,2448.5,0.40847]
[1728836872526,5.01729471,2448.6,2448.5,1.72847]
[1728836872825,4.8129802,2448.6,2448.5,1.72847]
[1728836873022,5.01729382,2448.6,2448.5,1.72847]
[1728836873521,5.01724183,2448.6,2448.5,1.72847]
[1728836874420,5.01721204,2448.6,2448.5,1.72847]
[1728836875126,1.60509842,2448.6,2448.5,1.72847]
[1728836875322,1.60509842,2448.6,2448.5,2.74247]
[1728836875528,1.60509842,2448.6,2448.5,6.82647]
[1728836875720,1.06995349,2448.7,2448.6,0.40845]
[1728836875927,1.06995349,2448.7,2448.6,2.23918464]
[1728836876523,1.06995349,2448.8,2448.7,0.40844]
[1728836876727,1.06995349,2448.8,2448.7,1.72844]
[1728836880320,2.92509842,2448.8,2448.7,1.32]
[1728836880521,3.53782854,2448.8,2448.7,1.32]
[1728836880730,1.93273012,2448.8,2448.7,1.32]
[1728836881119,1.93273012,2448.8,2448.4,3.6238]
[1728836881120,1.52431012,2448.8,2448.4,3.6238]
[1728836881428,1.47759753,2448.6,2448.4,1.72848]
[1728836881626,0.8117,2448.5,2448.4,1.72848]
[1728836881828,2.30363753,2448.5,2448.4,1.72848]
[1728836882018,2.20363753,2448.5,2448.4,0.40848]
[1728836882219,2.10363753,2448.5,2448.4,1.72848]
[1728836882821,0.40849,2448.4,2448.3,1.014]
[1728836883023,2.79780035,2448.4,2448.3,1.014]
[1728836883225,2.79780035,2448.4,2448.3,2.334]
[1728836883523,1.72849,2448.4,2448.3,2.7425]
[1728836883729,3.3321963,2448.4,2448.3,2.7425]
[1728836883930,2.9237063,2448.4,2448.3,2.7425]
[1728836884119,2.9237063,2448.4,2448.3,2.334]
[1728836884321,2.9237063,2448.4,2448.3,1.4225]
[1728836884516,3.12804733,2448.4,2448.3,2.334]
[1728836884733,3.12804807,2448.4,2448.3,2.334]
[1728836884923,3.12804807,2448.4,2448.3,1.32]
[1728836885121,3.12804807,2448.4,2448.1,4.93633]
[1728836885122,5.60834177,2448.4,2448.1,4.93633]
[1728836885326,2.38950682,2448.2,2448.1,3.2078]
[1728836885523,2.92426023,2448.2,2448.1,3.2078]
[1728836886026,7.00906023,2448.2,2448.1,3.2078]
[1728836886231,7.74393984,2448.2,2448.1,3.2078]
[1728836887131,7.74393984,2448.2,2448.0,1.32]
[1728836887424,4.36798866,2448.1,2448.0,1.32]
[1728836887831,8.24842738,2448.1,2448.0,1.72855]
[1728836888032,8.45279964,2448.1,2448.0,1.72855]
[1728836890027,7.13279964,2448.1,2448.0,1.72855]
[1728836890234,3.04799964,2448.1,2448.0,1.72855]
[1728836890432,7.13279964,2448.1,2448.0,1.72855]
[1728836891433,6.71679964,2448.1,2448.0,1.72855]
[1728836892039,2.63199964,2448.1,2448.0,1.72855]
[1728836894934,2.34757226,2448.1,2448.0,0.40855]
[1728836895436,0.40857,2447.9,2447.7,0.40859]
[1728836895627,1.32,2447.8,2447.7,1.32]
[1728836895831,1.52437226,2447.8,2447.7,0.4086]
[1728836896031,2.3436589,2447.8,2447.7,1.7286]
[1728836896236,0.20437226,2447.8,2447.7,1.32]
[1728836896541,1.60413577,2447.8,2447.7,1.7286]
[1728836896727,1.60413577,2447.9,2447.8,0.40859]
[1728836896929,2.34367512,2448.0,2447.8,1.32]
[1728836897142,0.20438848,2447.9,2447.8,0.40859]
[1728836897437,1.60384076,2447.9,2447.8,0.40859]
[1728836898335,1.60384076,2447.9,2447.8,1.72859]
[1728836898937,1.60384076,2448.0,2447.9,0.40857]
[1728836899139,1.8082165,2448.0,2447.9,1.72857]
[1728836899344,1.60384076,2448.0,2447.9,1.72857]
[1728836902937,2.42704076,2448.1,2448.0,0.40855]
[1728836903144,2.75610828,2448.1,2448.0,0.40855]
[1728836904354,2.34756828,2448.1,2448.0,0.40855]
[1728836904558,3.95035682,2448.1,2448.0,0.40855]
[1728836905257,2.34756828,2448.1,2448.0,0.40855]
[1728836905760,2.34757502,2448.1,2448.0,0.40855]
[1728836905959,3.95031117,2448.1,2448.0,0.40855]
[1728836906949,3.74593615,2448.1,2448.0,0.40855]
[1728836908456,4.15447615,2448.1,2448.0,0.40855]
[1728836909649,4.3588534,2448.1,2448.0,0.40855]
[1728836909850,4.3588534,2448.1,2447.8,1.32]
[1728836909851,3.74593615,2448.1,2447.8,1.32]
[1728836910055,2.38835887,2447.9,2447.8,1.72859]
[1728836910255,1.32,2447.9,2447.8,1.72859]
[1728836915263,1.06835887,2448.0,2447.9,0.40857]
[1728836915264,2.38835887,2448.0,2447.9,0.40857]
[1728836915458,2.38835887,2448.0,2447.9,1.72857]
[1728836915863,2.79690887,2448.0,2447.9,1.72857]
[1728836918801,2.79690887,2448.0,2447.9,0.40857]
[1728836919304,2.38835887,2448.0,2447.9,0.40857]
[1728836920166,2.3884393,2448.0,2447.9,0.40857]
[1728836920466,1.72855,2448.0,2447.9,0.40857]
[1728836920862,3.33128615,2448.0,2447.9,0.40857]
[1728836921662,2.92273615,2448.0,2447.9,0.40857]
[1728836922257,2.92273615,2448.0,2447.9,1.72857]
[1728836923460,3.12711031,2448.0,2447.9,1.72857]
[1728836924261,3.12711307,2448.0,2447.9,1.72857]
[1728836924468,1.52437692,2448.0,2447.9,1.72857]
[1728836925369,3.45928664,2448.0,2447.9,1.72857]
[1728836925568,3.66366356,2448.0,2447.9,1.72857]
[1728836927672,1.52437692,2448.0,2447.9,1.72857]
[1728836928273,0.20437692,2448.0,2447.9,1.72857]
[1728836928472,2.6741083,2448.0,2447.9,1.32]
[1728836928773,0.20437348,2448.0,2447.9,1.72857]
[1728836929076,2.00268802,2448.0,2447.9,1.72857]
[1728836929268,4.67679632,2448.0,2447.9,1.72857]
[1728836931781,4.67679632,2448.0,2447.9,2.23948699]
[1728836932075,4.67679632,2448.0,2447.9,7.30652672]
[1728836932076,2.34812824,2448.0,2447.9,7.30652672]
[1728836932670,0.20437348,2448.0,2447.9,7.30652672]
[1728836932964,2.34812824,2448.0,2447.9,7.30652672]
[1728836933167,2.14375476,2448.1,2448.0,0.40855]
[1728836933376,2.14375476,2448.1,2448.0,2.79018985]
[1728836934177,2.14375476,2448.1,2448.0,6.87498985]
[1728836934481,0.20435195,2448.1,2448.0,6.8749774]
[1728836934673,2.14375476,2448.2,2448.1,0.40854]
[1728836934974,2.14375476,2448.2,2448.1,2.11674]
[1728836935481,2.34810056,2448.2,2448.1,2.11674]
[1728836935778,2.14375476,2448.2,2448.1,2.11674]
[1728836936179,2.14375476,2448.2,2448.1,3.13074]
[1728836937180,2.14375476,2448.2,2448.1,3.80641954]
[1728836938376,0.20434412,2448.2,2448.1,3.80641954]
[1728836938671,2.34809862,2448.3,2448.2,0.40852]
[1728836938870,2.34809862,2448.3,2448.2,1.72852]
[1728836939075,2.34809862,2448.3,2448.2,2.23937964]
[1728836939266,2.34809862,2448.3,2448.2,1.72852]
[1728836940579,2.14375476,2448.3,2448.2,1.72852]
[1728836942277,2.34809862,2448.3,2448.2,1.72852]
[1728836942681,2.14375476,2448.3,2448.2,1.72852]
[1728836944176,0.20434386,2448.3,2448.2,1.72852]
[1728836944384,0.20434386,2448.3,2448.2,1.32]
[1728836944686,2.34809302,2448.4,2448.3,0.4085]
[1728836944881,1.60591259,2448.4,2448.3,6.32410617]
[1728836945192,1.07058019,2448.4,2448.3,12.69333214]
[1728836945478,2.14375476,2448.7,2448.3,17.81950582]
[1728836945479,1.07058019,2448.6,2448.3,17.81950582]
[1728836945685,1.07058019,2448.6,2448.5,1.72847]
[1728836946076,1.07058019,2448.6,2448.5,9.94951056]
[1728836946283,1.60591259,2448.7,2448.6,0.40845]
[1728836946471,1.60591259,2448.7,2448.6,2.74245]
[1728836948580,0.20429962,2448.8,2448.7,0.40844]
[1728836948581,1.60591259,2448.8,2448.7,0.40844]
[1728836948786,1.81021138,2448.8,2448.7,1.72844]
[1728836949587,1.60591259,2448.8,2448.7,1.72844]
[1728836950289,1.60341822,2448.8,2448.7,1.72844]
[1728836950788,1.60341822,2448.8,2448.7,2.14764]
[1728836952285,0.3869,2448.9,2448.8,0.40842]
[1728836952286,1.99031822,2448.9,2448.8,0.40842]
[1728836952486,2.19461568,2448.9,2448.8,1.72842]
[1728836953693,6.27781568,2448.9,2448.8,0.40842]
[1728836954001,11.34008842,2448.9,2448.6,1.32]
[1728836954290,1.47679878,2448.7,2448.6,1.72845]
[1728836954790,1.88989878,2448.7,2448.6,1.72845]
[1728836955187,1.48145878,2448.7,2448.6,1.72845]
[1728836955492,1.889817,2448.7,2448.6,1.72845]
[1728836955694,1.481377,2448.7,2448.6,1.72845]
[1728836955888,1.48137294,2448.7,2448.6,1.72845]
[1728836956990,1.88981294,2448.7,2448.6,1.72845]
[1728836957599,1.48137294,2448.7,2448.6,1.72845]
[1728836958895,1.88981294,2448.7,2448.6,1.72845]
[1728836959303,1.48137294,2448.7,2448.6,1.72845]
[1728836960093,1.88981294,2448.7,2448.6,1.72845]
[1728836962001,1.48137294,2448.7,2448.6,1.72845]
[1728836962495,1.06827294,2448.7,2448.6,1.72845]
[1728836963197,1.06827294,2448.7,2448.6,2.55205]
[1728836964508,1.06827294,2448.8,2448.7,0.40844]
[1728836964803,1.06827294,2448.8,2448.7,1.72844]
[1728836965004,1.06813672,2448.8,2448.7,1.72844]
[1728836971505,5.19727664,2448.9,2448.7,1.32]
[1728836971506,4.66283672,2448.9,2448.7,1.32]
[1728836971701,4.66283672,2448.9,2448.8,1.72842]
[1728836972406,3.5947,2448.9,2448.8,1.72842]
[1728836972607,5.19727664,2448.9,2448.8,1.72842]
[1728836973406,5.60567664,2448.9,2448.8,1.72842]
[1728836973998,5.19727664,2448.9,2448.8,1.72842]
[1728836974400,1.06886999,2448.9,2448.8,3.04842]
[1728836975014,1.06886999,2448.9,2448.8,1.72842]
[1728836976309,1.06886999,2448.9,2448.8,2.74042]
[1728836977523,2.02047664,2449.0,2448.8,2.332]
[1728836977703,2.02047664,2449.0,2448.9,1.7284]
[1728836977908,2.22476302,2449.0,2448.9,1.7284]
[1728836978106,1.03057638,2449.0,2448.9,1.7284]
[1728836979207,0.62218638,2449.0,2448.9,1.7284]
[1728836979408,2.76007734,2449.0,2448.9,1.7284]
[1728836979804,0.62218638,2449.0,2448.9,1.7284]
[1728836980016,0.62218638,2449.0,2448.9,2.1267]
[1728836982113,2.76007822,2449.0,2448.9,2.1267]
[1728836986717,2.76007685,2449.0,2448.9,2.1267]
[1728836988516,0.62218589,2449.0,2448.9,2.1267]
[1728836989217,2.55898725,2449.0,2448.9,2.1267]
[1728836989416,0.62218589,2449.0,2448.9,2.1267]
[1728836991315,0.4179,2449.0,2448.9,2.1267]
[1728836991620,0.62218982,2449.0,2448.9,2.1267]
[1728836993626,5.09411822,2449.0,2448.9,2.1267]
[1728836993828,0.62218982,2449.0,2448.9,2.1267]
[1728836994523,2.42176513,2449.0,2448.9,2.1267]
[1728836995226,0.62218982,2449.0,2448.9,2.1267]
[1728836995822,0.62218731,2449.0,2448.9,2.1267]
[1728837000522,3.4986537,2449.0,2448.9,2.1267]
[1728837000725,2.62587201,2449.0,2448.9,2.1267]
[1728837001031,5.50252302,2449.0,2448.9,2.1267]
[1728837001229,5.50252302,2449.0,2448.9,1.7284]
[1728837001731,2.83015932,2449.0,2448.9,1.7284]
[1728837002228,5.50263973,2449.0,2448.9,1.32]
[1728837003132,0.40842,2448.8,2448.7,0.79093]
[1728837003428,2.5505091,2448.8,2448.7,1.99560607]
[1728837003626,2.75480868,2448.8,2448.7,1.99560607]
[1728837003823,3.14210868,2448.8,2448.7,1.99560607]
[1728837004220,3.14210868,2448.8,2448.7,2.40404607]
[1728837005331,2.34638868,2448.8,2448.7,3.72404607]
[1728837005623,0.20429958,2448.8,2448.7,4.54120804]
[1728837005826,2.34637852,2448.9,2448.8,0.40842]
[1728837006017,2.34637852,2448.9,2448.8,2.40402607]
[1728837006221,2.34637852,2448.9,2448.8,2.79442607]
[1728837006422,2.34637852,2448.9,2448.8,4.11442607]
[1728837006930,2.34637852,2448.9,2448.8,8.13933619]
[1728837006931,0.20428942,2448.9,2448.8,8.13933619]
[1728837007127,2.34636859,2449.0,2448.9,0.4084]
[1728837007322,2.3463684,2449.0,2448.9,2.79630607]
[1728837008124,0.20426639,2449.0,2448.9,3.61337167]
[1728837008325,0.20426639,2449.0,2448.9,7.28817167]
[1728837008527,2.1420891,2449.1,2449.0,0.40839]
[1728837008733,1.81106361,2449.1,2449.0,9.78269236]
[1728837009032,1.81105666,2449.1,2449.0,9.78269236]
[1728837009227,1.60680504,2449.1,2449.0,9.78269236]
[1728837009621,1.60680504,2449.1,2449.0,8.45475907]
[1728837010136,1.60680504,2449.1,2449.0,9.78239929]
[1728837010328,1.60680504,2449.1,2449.0,9.37400929]
[1728837010329,1.07094837,2449.1,2449.0,9.37400929]
[1728837010630,1.0707685,2449.1,2449.0,10.9292707]
[1728837011023,1.0707685,2449.1,2449.0,11.45880584]
[1728837011430,1.60680504,2449.2,2449.1,0.40837]
[1728837011431,1.0707685,2449.2,2449.1,0.40837]
[1728837011731,1.0707685,2449.2,2449.1,5.61149963]
[1728837011932,1.0707685,2449.2,2449.1,5.99409963]
[1728837012233,1.0707685,2449.2,2449.1,7.87331638]
[1728837012425,1.0707685,2449.2,2449.1,5.99409963]
[1728837014632,1.0707685,2449.2,2449.1,7.00509963]
[1728837015626,1.0707685,2449.2,2449.1,5.99409963]
[1728837015828,1.0707685,2449.2,2449.1,7.00509963]
[1728837017032,1.0707685,2449.2,2449.1,6.49427445]
[1728837017230,1.0707685,2449.2,2449.1,7.00489571]
[1728837017632,1.0707685,2449.2,2449.1,6.84039126]
[1728837017931,1.0707685,2449.2,2449.1,7.00489104]
[1728837018121,1.0707685,2449.2,2449.1,6.84039126]
[1728837018523,1.0707685,2449.3,2449.2,0.40835]
[1728837018726,1.0707685,2449.3,2449.2,1.72835]
[1728837018727,1.60680504,2449.3,2449.2,1.72835]
[1728837019128,1.60680504,2449.4,2449.3,0.40834]
[1728837019330,1.81105078,2449.4,2449.3,1.72834]
[1728837019638,1.80876275,2449.4,2449.3,1.72834]
[1728837019841,0.2042481,2449.4,2449.3,1.72834]
[1728837020033,1.60451893,2449.4,2449.3,1.72834]
[1728837020339,1.80876703,2449.4,2449.3,1.72834]
[1728837020533,1.06958741,2449.4,2449.3,6.7224]
[1728837020729,1.06958741,2449.5,2449.4,0.40832]
[1728837021037,1.06958741,2449.6,2449.5,0.4083]
[1728837021334,1.06958741,2449.6,2449.5,1.7283]
[1728837021531,1.06958741,2449.7,2449.6,0.40829]
[1728837021731,1.06958741,2449.7,2449.6,2.73929]
[1728837021934,1.60451893,2449.7,2449.6,2.73929]
[1728837022643,1.06890453,2449.7,2449.6,2.73929]
[1728837023139,1.06890453,2449.8,2449.7,0.40827]
[1728837023338,1.06890453,2449.8,2449.7,1.72827]
[1728837023528,1.06890453,2449.8,2449.7,2.11757]
[1728837024644,1.45830453,2449.9,2449.8,0.40825]
[1728837024842,1.45830453,2449.9,2449.8,2.13265]
[1728837025844,0.3894,2449.9,2449.8,2.13265]
[1728837026342,1.06890453,2450.0,2449.9,0.40824]
[1728837026639,1.06890453,2450.1,2450.0,0.40822]
[1728837026847,2.01801893,2450.2,2450.0,1.72822]
[1728837026848,1.48240453,2450.2,2450.0,1.72822]
[1728837027037,1.48240453,2450.2,2450.1,4.0592]
[1728837027242,1.48240453,2450.2,2450.1,2.7392]
[1728837027838,1.48240453,2450.2,2450.1,4.0592]
[1728837028343,1.48240453,2450.2,2450.1,2.7392]
[1728837028344,0.4135,2450.2,2450.1,2.7392]
[1728837030450,0.82169,2450.2,2450.1,2.7372]
[1728837030641,0.4135,2450.2,2450.1,2.7372]
[1728837031639,0.8217,2450.2,2450.1,1.009]
[1728837031836,0.8217,2450.2,2450.1,2.329]
[1728837033537,0.8217,2450.2,2450.1,1.32]
[1728837034548,0.4135,2450.2,2449.7,0.79756]
[1728837034840,0.4135,2450.2,2449.8,1.009]
[1728837034841,0.40824,2449.9,2449.8,1.009]
[1728837035039,1.02053,2450.1,2449.8,1.009]
[1728837035241,0.40824,2449.9,2449.8,1.009]
[1728837035746,1.24674,2449.9,2449.8,1.009]
[1728837036147,0.8385,2449.9,2449.8,2.329]
[1728837036349,0.8385,2449.9,2449.8,2.73725]
[1728837037243,3.616,2450.2,2450.0,0.40821]
[1728837037445,0.8144,2450.1,2450.0,0.40821]
[1728837037650,0.8144,2450.1,2450.0,1.72821]
[1728837037948,0.8144,2450.1,2450.0,2.13921]
[1728837038638,0.8144,2450.1,2450.0,3.45921]
[1728837038838,0.8144,2450.1,2450.0,2.13921]
[1728837040440,1.16490453,2450.5,2450.0,7.1326]
[1728837040641,4.81231893,2450.6,2450.0,7.1326]
[1728837040642,3.614,2450.6,2450.4,1.72815]
[1728837040851,3.614,2450.6,2450.5,1.72814]
[1728837041049,0.4062,2450.6,2450.5,1.72814]
[1728837041550,0.4062,2450.6,2450.5,4.93594]
[1728837041744,1.60451893,2451.1,2450.6,4.08]
[1728837041945,3.7694891,2451.7,2451.0,12.15915289]
[1728837042144,0.8074,2451.7,2451.6,1.32]
[1728837042349,0.8074,2451.7,2451.6,4.05695]
[1728837042552,0.8074,2451.7,2451.6,2.329]
[1728837042751,0.8074,2451.7,2451.6,2.73695]
[1728837043048,4.8866,2451.7,2451.5,1.009]
[1728837043252,4.42315,2451.7,2451.6,1.32]
[1728837043651,8.50235,2451.7,2451.6,1.32]
[1728837044450,5.29455,2451.7,2451.6,1.32]
[1728837045254,5.29455,2451.7,2451.6,1.72795]
[1728837045255,0.8074,2451.7,2451.6,1.72795]
[1728837045458,0.8074,2451.7,2451.6,3.04795]
[1728837045650,3.2078,2452.0,2451.6,2.64]
[1728837045856,3.2078,2452.0,2451.9,3.2679]
[1728837046155,3.2078,2452.0,2451.9,2.86]
[1728837046349,3.61569,2452.0,2451.9,2.86]
[1728837050658,7.69409,2452.0,2451.9,2.86]
[1728837051862,3.61569,2452.0,2451.9,2.86]
[1728837052954,0.40789,2452.0,2451.9,2.86]
[1728837056059,4.48629,2452.0,2451.9,2.86]
[1728837057264,7.69409,2452.0,2451.9,2.86]
[1728837058260,7.2862,2452.0,2451.9,2.86]
[1728837058462,1.01963,2452.3,2451.9,2.86]
[1728837058463,1.01963,2452.3,2451.9,10.5541]
[1728837058764,0.40788,2452.1,2451.9,3.6157]
[1728837059065,0.40787,2452.1,2451.9,3.6157]
[1728837059365,0.3939,2452.2,2451.5,3.2078]